lending/lending_fUSD_20251116
["ID","MTS","AMOUNT","RATE_DAILY","PERIOD"]
[394120255,1763307054440,-353.0,0.00024658,2]
[394120256,1763307054449,-353.0,0.00024658,2]
[394120257,1763307054458,-353.0,0.00024658,2]
[394120258,1763307054473,-353.0,0.00024658,2]
[394120259,1763307054483,-276.0,0.00024658,2]
[394120260,1763307054492,-276.0,0.00024658,2]
[394120261,1763307054502,-276.0,0.00024658,2]
[394120262,1763307054514,-276.0,0.00024658,2]
[394120263,1763307054525,-276.0,0.00024658,2]
[394120264,1763307054534,-276.0,0.00024658,2]
[394120265,1763307054547,-276.0,0.00024658,2]
[394120266,1763307054558,-276.0,0.00024658,2]
[394120267,1763307054567,-276.0,0.00024658,2]
[394120268,1763307054576,-276.0,0.00024658,2]
[394120269,1763307054586,-276.0,0.00024658,2]
[394120270,1763307054595,-276.0,0.00024658,2]
[394120271,1763307054605,-276.0,0.00024658,2]
[394120272,1763307054616,-276.0,0.00024658,2]
[394120273,1763307054626,-353.0,0.00024658,2]
[394120274,1763307054636,-353.0,0.00024658,2]
[394120275,1763307054646,-353.0,0.00024658,2]
[394120276,1763307054657,-353.0,0.00024658,2]
[394120277,1763307054670,-353.0,0.00024658,2]
[394120278,1763307054680,-353.0,0.00024658,2]
[394120279,1763307054691,-307.0,0.00024658,2]
[394120280,1763307054701,-307.0,0.00024658,2]
[394120281,1763307054711,-307.0,0.00024658,2]
[394120282,1763307054721,-307.0,0.00024658,2]
[394120283,1763307054731,-307.0,0.00024658,2]
[394120284,1763307054741,-307.0,0.00024658,2]
[394120285,1763307054750,-307.0,0.00024658,2]
[394120286,1763307054760,-307.0,0.00024658,2]
[394120287,1763307054770,-307.0,0.00024658,2]
[394120288,1763307054779,-307.0,0.00024658,2]
[394120289,1763307054788,-307.0,0.00024658,2]
[394120290,1763307054798,-307.0,0.00024658,2]
[394120291,1763307054807,-307.0,0.00024658,2]
[394120292,1763307054816,-307.0,0.00024658,2]
[394120293,1763307054825,-301.0,0.00024658,2]
[394120294,1763307054834,-301.0,0.00024658,2]
[394120295,1763307054843,-301.0,0.00024658,2]
[394120296,1763307054853,-301.0,0.00024658,2]
[394120297,1763307054862,-301.0,0.00024658,2]
[394120298,1763307054871,-301.0,0.00024658,2]
[394120299,1763307054881,-306.0,0.00024658,2]
[394120300,1763307054890,-306.0,0.00024658,2]
[394120301,1763307054899,-306.0,0.00024658,2]
[394120302,1763307054908,-306.0,0.00024658,2]
[394120303,1763307054918,-306.0,0.00024658,2]
[394120304,1763307054927,-306.0,0.00024658,2]
[394120305,1763307054936,-306.0,0.00024658,2]
[394120306,1763307054945,-306.0,0.00024658,2]
[394120307,1763307054954,-306.0,0.00024658,2]
[394120308,1763307055097,-306.0,0.00024658,2]
[394120309,1763307055107,-306.0,0.00024658,2]
[394120310,1763307055116,-306.0,0.00024658,2]
[394120311,1763307055126,-306.0,0.00024658,2]
[394120312,1763307055135,-306.0,0.00024658,2]
[394120313,1763307055146,-153.0,0.00024658,2]
[394120314,1763307055156,-153.0,0.00024658,2]
[394120315,1763307055166,-151.0,0.00024658,7]
[394120316,1763307055178,-151.0,0.00024658,7]
[394120317,1763307055189,-151.0,0.00024658,7]
[394120318,1763307055199,-151.0,0.00024658,7]
[394120319,1763307055209,-151.0,0.00024658,7]
[394120320,1763307055218,-153.725871,0.00024658,7]
[394120321,1763307055227,-151.0,0.00024658,7]
[394120322,1763307055236,-151.0,0.00024658,7]
[394120323,1763307055246,-151.0,0.00024658,7]
[394120324,1763307055257,-181.815183,0.00024658,7]
[394120325,1763307055266,-181.815183,0.00024658,7]
[394120326,1763307055275,-151.0,0.00024658,7]
[394120327,1763307055285,-219.91859,0.00024658,7]
[394120328,1763307055295,-253.049661,0.00024658,7]
[394120329,1763307055304,-181.815183,0.00024658,7]
[394120330,1763307055314,-151.0,0.00024658,7]
[394120331,1763307055324,-181.815183,0.00024658,7]
[394120332,1763307055333,-219.91859,0.00024658,7]
[394120333,1763307055343,-151.0,0.00024658,7]
[394120334,1763307055353,-151.0,0.00024658,7]
[394120335,1763307055364,-219.91859,0.00024658,7]
[394120336,1763307055375,-219.91859,0.00024658,7]
[394120337,1763307055384,-151.0,0.00024658,7]
[394120338,1763307055395,-151.0,0.00024658,7]
[394120339,1763307055406,-151.0,0.00024658,7]
[394120340,1763307055416,-270.067644,0.00024658,7]
[394120341,1763307055426,-151.0,0.00024658,7]
[394120342,1763307055435,-151.0,0.00024658,7]
[394120343,1763307055445,-151.0,0.00024658,7]
[394120344,1763307055456,-151.0,0.00024658,7]
[394120345,1763307055467,-151.0,0.00024658,7]
[394120346,1763307055478,-366.51293718,0.00024658,2]
[394120347,1763307055488,-217.15233878,0.00024658,2]
[394120348,1763307055499,-1598.6292,0.000247,2]
[394120349,1763307055509,-151.0,0.00024767,7]
[394120350,1763307055519,-151.0,0.00024767,7]
[394120351,1763307055530,-151.0,0.00024767,7]
[394120352,1763307055539,-151.0,0.00024767,7]
[394120353,1763307055550,-158.371195,0.00024767,7]
[394120354,1763307055559,-161.211889,0.00024767,7]
[394120355,1763307055569,-151.0,0.00024767,7]
[394120356,1763307055579,-151.0,0.00024767,7]
[394120357,1763307055589,-249.011704,0.00024767,7]
[394120358,1763307055600,-249.011704,0.00024767,7]
[394120359,1763307055609,-151.0,0.00024767,7]
[394120360,1763307055618,-249.011704,0.00024767,7]
[394120361,1763307055628,-151.0,0.00024767,7]
[394120362,1763307055638,-279.229407,0.00024767,7]
[394120363,1763307055649,-249.011704,0.00024767,7]
[394120364,1763307055659,-151.0,0.00024767,7]
[394120365,1763307055668,-279.229407,0.00024767,7]
[394120366,1763307055679,-151.0,0.00024767,7]
[394120367,1763307055688,-279.229407,0.00024767,7]
[394120368,1763307055699,-279.229407,0.00024767,7]
[394120369,1763307055710,-151.0,0.00024767,7]
[394120370,1763307055720,-151.0,0.00024767,7]
[394120371,1763307055731,-151.0,0.00024767,7]
[394120372,1763307055741,-172.659662,0.00024767,7]
[394120373,1763307055750,-307.289572,0.00024767,7]
[394120374,1763307055760,-307.289572,0.00024767,7]
[394120375,1763307055769,-307.289572,0.00024767,7]
[394120376,1763307055779,-307.289572,0.00024767,7]
[394120377,1763307055788,-151.0,0.00024767,7]
[394120378,1763307055797,-289.87748,0.00024767,7]
[394120379,1763307055807,-289.87748,0.00024767,7]
[394120380,1763307055816,-289.87748,0.00024767,7]
[394120381,1763307055825,-289.87748,0.00024767,7]
[394120382,1763307055834,-1774.0,0.00024767,2]
[394120383,1763307055843,-9133.0,0.00024767,2]
[394120384,1763307055852,-14332.0,0.00024767,2]
[394120385,1763307055861,-150.0,0.00024795,4]
[394120386,1763307055871,-300.0,0.00024799,10]
[394120387,1763307055880,-300.0,0.00024799,10]
[394120388,1763307055889,-666.0,0.00024799,2]
[394120389,1763307055899,-500.0,0.00024799,2]
[394120390,1763307055907,-591.0258756,0.00024799,2]
[394120391,1763307055917,-479.06402154,0.000248,3]
[394120392,1763307055926,-150.0,0.000248,2]
[394120393,1763307055935,-164.572823,0.000248,7]
[394120394,1763307055945,-151.0,0.000248,7]
[394120395,1763307055955,-151.0,0.000248,7]
[394120396,1763307055966,-151.0,0.000248,7]
[394120397,1763307055977,-156.3096,0.000248,7]
[394120398,1763307055987,-151.0,0.000248,7]
[394120399,1763307055998,-151.0,0.000248,7]
[394120400,1763307056008,-151.0,0.000248,7]
[394120401,1763307056018,-151.0,0.000248,7]
[394120402,1763307056027,-151.0,0.000248,7]
[394120403,1763307056038,-151.0,0.000248,7]
[394120404,1763307056050,-151.0,0.000248,7]
[394120405,1763307056060,-151.0,0.000248,7]
[394120406,1763307056070,-151.0,0.000248,7]
[394120407,1763307056081,-151.0,0.000248,7]
[394120408,1763307056091,-151.0,0.000248,7]
[394120409,1763307056101,-151.0,0.000248,7]
[394120410,1763307056111,-297.369946,0.000248,7]
[394120411,1763307056123,-162.886951,0.000248,7]
[394120412,1763307056132,-151.0,0.000248,7]
[394120413,1763307056141,-151.0,0.000248,7]
[394120414,1763307056151,-305.028035,0.000248,7]
[394120415,1763307056161,-305.028035,0.000248,7]
[394120416,1763307056172,-305.028035,0.000248,7]
[394120417,1763307056181,-305.028035,0.000248,7]
[394120418,1763307056193,-151.0,0.000248,7]
[394120419,1763307056203,-151.0,0.000248,7]
[394120420,1763307056212,-192.33357,0.000248,7]
[394120421,1763307056221,-192.33357,0.000248,7]
[394120422,1763307056231,-151.0,0.000248,7]
[394120423,1763307056240,-192.33357,0.000248,7]
[394120424,1763307056250,-192.33357,0.000248,7]
[394120425,1763307056259,-151.0,0.000248,7]
[394120426,1763307056269,-154.617835,0.000248,7]
[394120427,1763307056278,-151.0,0.000248,7]
[394120428,1763307056287,-151.0,0.000248,7]
[394120429,1763307056297,-151.0,0.000248,7]
[394120430,1763307056306,-151.0,0.000248,7]
[394120431,1763307056316,-162.283548,0.000248,7]
[394120432,1763307056325,-151.0,0.000248,7]
[394120433,1763307056334,-162.283548,0.000248,7]
[394120434,1763307056343,-162.283548,0.000248,7]
[394120435,1763307056352,-162.283548,0.000248,7]
[394120436,1763307056362,-151.0,0.000248,7]
[394120437,1763307056371,-151.0,0.000248,7]
[394120438,1763307056381,-214.412412,0.000248,7]
[394120439,1763307056390,-161.513378,0.000248,7]
[394120440,1763307056399,-151.0,0.000248,7]
[394120441,1763307056409,-151.0,0.000248,7]
[394120442,1763307056419,-151.0,0.000248,7]
[394120443,1763307056428,-155.92961,0.000248,7]
[394120444,1763307056438,-151.0,0.000248,7]
[394120445,1763307056447,-374.626611,0.000248,7]
[394120446,1763307056456,-151.0,0.000248,7]
[394120447,1763307056467,-374.626611,0.000248,7]
[394120448,1763307056478,-374.626611,0.000248,7]
[394120449,1763307056487,-374.626611,0.000248,7]
[394120450,1763307056496,-151.972917,0.000248,7]
[394120451,1763307056506,-754.641947,0.000248,7]
[394120452,1763307056515,-754.641947,0.000248,7]
[394120453,1763307056524,-754.641947,0.000248,7]
[394120454,1763307056534,-754.641947,0.000248,7]
[394120455,1763307056544,-151.0,0.000248,7]
[394120456,1763307056553,-151.0,0.000248,7]
[394120457,1763307056563,-163.149315,0.000248,7]
[394120458,1763307056572,-372.988808,0.000248,7]
[394120459,1763307056581,-151.0,0.000248,7]
[394120460,1763307056591,-163.149315,0.000248,7]
[394120461,1763307056600,-163.149315,0.000248,7]
[394120462,1763307056609,-163.149315,0.000248,7]
[394120463,1763307056620,-151.0,0.000248,7]
[394120464,1763307056631,-151.0,0.000248,7]
[394120465,1763307056640,-151.0,0.000248,7]
[394120466,1763307056650,-151.0,0.000248,7]
[394120467,1763307056660,-151.0,0.000248,7]
[394120468,1763307056671,-151.0,0.000248,7]
[394120469,1763307056681,-151.0,0.000248,7]
[394120470,1763307056692,-151.0,0.000248,7]
[394120471,1763307056704,-154.095361,0.000248,7]
[394120472,1763307056714,-151.0,0.000248,7]
[394120473,1763307056724,-151.0,0.000248,7]
[394120474,1763307056734,-151.0,0.000248,7]
[394120475,1763307056743,-151.0,0.000248,7]
[394120476,1763307056752,-151.0,0.000248,7]
[394120477,1763307056878,-151.0,0.000248,7]
[394120478,1763307056888,-151.0,0.000248,7]
[394120479,1763307056898,-163.672365,0.000248,7]
[394120480,1763307056907,-151.0,0.000248,7]
[394120481,1763307056916,-151.0,0.000248,7]
[394120482,1763307056927,-151.0,0.000248,7]
[394120483,1763307056936,-151.0,0.000248,7]
[394120484,1763307056946,-151.0,0.000248,7]
[394120485,1763307056956,-151.0,0.000248,7]
[394120486,1763307056965,-249.011704,0.000248,7]
[394120487,1763307056975,-249.011704,0.000248,7]
[394120488,1763307056984,-151.0,0.000248,7]
[394120489,1763307056994,-249.011704,0.000248,7]
[394120490,1763307057003,-151.0,0.000248,7]
[394120491,1763307057013,-279.229407,0.000248,7]
[394120492,1763307057024,-249.011704,0.000248,7]
[394120493,1763307057034,-151.0,0.000248,7]
[394120494,1763307057043,-279.229407,0.000248,7]
[394120495,1763307057052,-185.762901,0.000248,7]
[394120496,1763307057063,-279.229407,0.000248,7]
[394120497,1763307057073,-279.229407,0.000248,7]
[394120498,1763307057083,-151.0,0.000248,7]
[394120499,1763307057092,-151.0,0.000248,7]
[394120500,1763307057103,-151.0,0.000248,7]
[394120501,1763307057113,-307.289572,0.000248,7]
[394120502,1763307057123,-151.0,0.000248,7]
[394120503,1763307057132,-307.289572,0.000248,7]
[394120504,1763307057142,-151.0,0.000248,7]
[394120505,1763307057152,-307.289572,0.000248,7]
[394120506,1763307057162,-151.0,0.000248,7]
[394120507,1763307057172,-151.0,0.000248,7]
[394120508,1763307057182,-307.289572,0.000248,7]
[394120509,1763307057192,-151.0,0.000248,7]
[394120510,1763307057203,-151.0,0.000248,7]
[394120511,1763307057212,-151.0,0.000248,7]
[394120512,1763307057221,-151.0,0.000248,7]
[394120513,1763307057231,-151.0,0.000248,7]
[394120514,1763307057241,-181.815183,0.000248,7]
[394120515,1763307057251,-181.815183,0.000248,7]
[394120516,1763307057260,-151.0,0.000248,7]
[394120517,1763307057270,-219.91859,0.000248,7]
[394120518,1763307057281,-181.815183,0.000248,7]
[394120519,1763307057291,-151.0,0.000248,7]
[394120520,1763307057301,-181.815183,0.000248,7]
[394120521,1763307057311,-219.91859,0.000248,7]
[394120522,1763307057321,-151.0,0.000248,7]
[394120523,1763307057331,-261.369398,0.000248,7]
[394120524,1763307057341,-219.91859,0.000248,7]
[394120525,1763307057351,-219.91859,0.000248,7]
[394120526,1763307057361,-300.0,0.000248,3]
[394120527,1763307057371,-300.0,0.000248,3]
[394120528,1763307057381,-289.87748,0.000248,7]
[394120529,1763307057390,-300.0,0.000248,3]
[394120530,1763307057401,-300.0,0.000248,3]
[394120531,1763307057411,-300.0,0.000248,3]
[394120532,1763307057421,-289.87748,0.000248,7]
[394120533,1763307057431,-289.87748,0.000248,7]
[394120534,1763307057442,-151.0,0.000248,7]
[394120535,1763307057453,-151.0,0.000248,7]
[394120536,1763307057463,-151.0,0.000248,7]
[394120537,1763307057476,-312391.28944572,0.000248,3]
[394120539,1763307220508,679.46,0.00013699,2]
[394120544,1763307303559,153.99,0.00028001,120]
[394120545,1763307422199,2746.02,0.00010157,2]
[394120546,1763307422464,2746.02,0.00010691,2]
[394120547,1763307422665,2746.02,0.00011226,2]
[394120548,1763307422900,989.16088593,0.0001176,2]
[394120549,1763307422928,1756.85911407,0.0001176,2]
[394120550,1763307423109,2746.02,0.00012295,2]
[394120551,1763307423598,2746.02,0.00012829,2]
[394120552,1763307423973,2746.02,0.00013364,2]
[394120553,1763307424117,5.09088593,0.00013898,2]
[394120554,1763307424141,2740.92911407,0.00013898,2]
[394120555,1763307424367,2746.02,0.00014433,2]
[394120556,1763307424572,2746.02,0.00014967,2]
[394120557,1763307424795,1767.04088593,0.00015502,2]
[394120558,1763307424820,978.97911407,0.00015502,2]
[394120559,1763307425037,2746.02,0.00016037,2]
[394120710,1763307503757,9977.4575414,0.00013364,2]
[394120712,1763307503816,22.5524586,0.00013364,2]
[394120713,1763307503840,227.4475414,0.00013364,2]
[394120823,1763307987023,153.87,0.00013825,2]
[394120841,1763308142360,150.0,0.00030133,120]
[394120842,1763308216078,2751.0,0.00016493,2]
[394120865,1763308232404,-833.88,0.00016503,2]
[394120867,1763308232414,-300.0,0.00016509,2]
[394120869,1763308232425,-189.17998382,0.00016515,2]
[394120874,1763308232469,-60.82001618,0.00016515,2]
[394120877,1763308232479,-300.0,0.00016528,2]
[394120879,1763308232489,-2746.02,0.00016571,2]
[394120881,1763308232499,-1260.61,0.00016665,2]
[394120883,1763308232509,-504.07,0.00016839,2]
[394120885,1763308232519,-1200.0,0.00017105,2]
[394120887,1763308232529,-2746.02,0.00017106,2]
[394120889,1763308232538,-163.62,0.00017188,2]
[394120891,1763308232547,-112335.16553167,0.00017198,2]
[394120893,1763308232559,-141942.69440957,0.00017198,2]
[394120895,1763308232570,-220438.73978315,0.00017198,2]
[394120896,1763308232582,-21606.86350021,0.00017198,2]
[394120897,1763308232645,-443.8799998,0.00017198,2]
[394120901,1763308238440,-213.9179736,0.00017197,2]
[394120902,1763308238451,-500.0,0.00017197,2]
[394120903,1763308238460,-85.441606,0.00017197,2]
[394120904,1763308238472,-254.42861223,0.00017197,2]
[394120905,1763308238483,-500.0,0.00017197,2]
[394120907,1763308238492,-111.71298772,0.00017197,2]
[394121075,1763308240343,-388.28701228,0.00017197,2]
[394121077,1763308240354,-500.0,0.00017197,2]
[394121079,1763308240363,-500.0,0.00017197,2]
[394121081,1763308240373,-500.0,0.00017197,2]
[394121083,1763308240382,-222.58802314,0.00017197,2]
[394121084,1763308240392,-500.0,0.00017197,2]
[394121086,1763308240402,-500.0,0.00017197,2]
[394121088,1763308240411,-500.0,0.00017197,2]
[394121090,1763308240421,-500.0,0.00017197,2]
[394121092,1763308240431,-500.0,0.00017197,2]
[394121094,1763308240440,-500.0,0.00017197,2]
[394121096,1763308240450,-500.0,0.00017197,2]
[394121098,1763308240459,-500.0,0.00017197,2]
[394121099,1763308240469,-500.0,0.00017197,2]
[394121101,1763308240478,-500.0,0.00017197,2]
[394121103,1763308240488,-500.0,0.00017197,2]
[394121105,1763308240497,-500.0,0.00017197,2]
[394121107,1763308240507,-500.0,0.00017197,2]
[394121109,1763308240516,-500.0,0.00017197,2]
[394121110,1763308240525,-500.0,0.00017197,2]
[394121112,1763308240535,-500.0,0.00017197,2]
[394121114,1763308240544,-959.12496458,0.00017198,2]
[394121116,1763308240555,-534.2840352,0.00017198,2]
[394121118,1763308240566,-3695.0,0.00017198,2]
[394121120,1763308240577,-777.12919889,0.00017198,2]
[394121123,1763308240597,-8606.70668001,0.00017198,2]
[394121125,1763308240608,-5360.13621478,0.00017198,2]
[394121127,1763308240619,-4523.85808637,0.00017198,2]
[394121128,1763308240638,-102845.89930982,0.00017198,2]
[394121155,1763308243753,-284.82984593,0.00017198,2]
[394121156,1763308243764,-499.06945007,0.00017198,2]
[394121157,1763308243801,-10727.28993093,0.00017198,2]
[394121165,1763308246330,-2747.06,0.00017198,2]
[394121166,1763308246379,-1935.68,0.00017198,2]
[394121167,1763308246516,-1190.9031732,0.00017198,2]
[394121168,1763308246561,-2420.11577205,0.00017198,2]
[394121182,1763308660371,500.0,0.00016403,2]
[394121183,1763308690676,270.96,0.00016425,2]
[394121185,1763308723671,1694.09,0.00019178,30]
[394121186,1763308757820,5563.5,0.00016345,2]
[394121198,1763308868587,626.67197701,0.00019178,30]
[394121199,1763308898291,500.0,0.00028999,120]
[394121200,1763308898332,500.0,0.00029999,120]
[394121201,1763308900252,150.0,0.00016209,2]
[394121221,1763309333507,1442.48,0.00016214,2]
[394121222,1763309337999,269.7435,0.00016403,2]
[394121223,1763309342687,150.0,0.00030132,120]
[394121475,1763309381739,500.0,0.00016125,2]
[394121499,1763309431466,-999.0,0.00016503,3]
[394121502,1763309431483,-250.0,0.00016518,2]
[394121504,1763309431493,-259.41690976,0.000166,2]
[394121506,1763309431502,-152.75,0.00016624,2]
[394121508,1763309431511,-1705.70922546,0.00016738,2]
[394121510,1763309431523,-166.66,0.00016746,2]
[394121511,1763309431533,-217.78769241,0.00016858,2]
[394121512,1763309431543,-170.44438333,0.00016928,2]
[394121513,1763309431552,-1200.0,0.00016985,2]
[394121514,1763309431561,-300.0,0.00016985,2]
[394121515,1763309431571,-300.0,0.00016985,2]
[394121516,1763309431580,-1200.0,0.00016985,2]
[394121517,1763309431590,-300.0,0.00016985,2]
[394121518,1763309431600,-30326.28,0.00016986,2]
[394121519,1763309431609,-415.66046234,0.00016997,2]
[394121520,1763309431618,-1780.87148537,0.00016997,2]
[394121521,1763309431628,-16373.97989979,0.00016998,2]
[394121522,1763309431637,-250.0,0.00017,2]
[394121523,1763309431647,-550.0,0.00017028,2]
[394121524,1763309431656,-1523.6,0.0001703,2]
[394121525,1763309431666,-5911.76,0.0001703,2]
[394121526,1763309431675,-8397.89,0.0001703,2]
[394121527,1763309431686,-1454.31,0.0001703,2]
[394121528,1763309431695,-14336.39,0.0001703,2]
[394121529,1763309431704,-2771.56,0.0001703,2]
[394121530,1763309431713,-1535.97,0.0001703,2]
[394121531,1763309431723,-1169.66,0.0001703,2]
[394121532,1763309431733,-8060.3,0.0001703,2]
[394121533,1763309431742,-9999.99,0.0001703,2]
[394121534,1763309431756,-999.99,0.0001703,2]
[394121535,1763309431766,-150.99,0.0001703,2]
[394121536,1763309431777,-200.0,0.00017047,2]
[394121539,1763309431788,-3366.8,0.00017047,2]
[394121540,1763309431798,-9684.89,0.00017047,2]
[394121541,1763309431808,-150.99,0.00017047,2]
[394121542,1763309431817,-9999.99,0.00017047,2]
[394121544,1763309431827,-499.99,0.00017047,2]
[394121546,1763309431837,-1000.0,0.00017047,2]
[394121547,1763309431847,-9999.99,0.00017047,2]
[394121548,1763309431857,-215.25193973,0.00017073,2]
[394121549,1763309431867,-500.0,0.00017073,2]
[394121550,1763309431877,-163.62,0.00017087,2]
[394121551,1763309431888,-152.60759887,0.00017096,2]
[394121552,1763309431899,-176.81248374,0.00017096,2]
[394121553,1763309431909,-500.0,0.00017096,2]
[394121555,1763309431918,-500.0,0.00017096,2]
[394121557,1763309431928,-500.0,0.00017096,2]
[394121560,1763309431937,-500.0,0.00017096,2]
[394121562,1763309431946,-500.0,0.00017096,2]
[394121565,1763309431959,-500.0,0.00017096,2]
[394121568,1763309431969,-500.0,0.00017096,2]
[394121570,1763309431978,-500.0,0.00017096,2]
[394121573,1763309431988,-500.0,0.00017096,2]
[394121576,1763309431997,-500.0,0.00017096,2]
[394121578,1763309432007,-500.0,0.00017096,2]
[394121581,1763309432020,-500.0,0.00017096,2]
[394121583,1763309432029,-500.0,0.00017096,2]
[394121586,1763309432038,-441.49962034,0.00017096,2]
[394121589,1763309432048,-500.0,0.00017096,2]
[394121591,1763309432057,-500.0,0.00017096,2]
[394121594,1763309432066,-500.0,0.00017096,2]
[394121597,1763309432075,-500.0,0.00017096,2]
[394121599,1763309432085,-500.0,0.00017096,2]
[394121602,1763309432094,-500.0,0.00017096,2]
[394121605,1763309432103,-500.0,0.00017096,2]
[394121608,1763309432113,-500.0,0.00017096,2]
[394121611,1763309432122,-500.0,0.00017096,2]
[394121613,1763309432131,-500.0,0.00017096,2]
[394121615,1763309432141,-500.0,0.00017096,2]
[394121618,1763309432150,-500.0,0.00017096,2]
[394121620,1763309432163,-500.0,0.00017096,2]
[394121622,1763309432174,-500.0,0.00017096,2]
[394121624,1763309432183,-500.0,0.00017096,2]
[394121626,1763309432194,-450.0,0.00017096,2]
[394121628,1763309432204,-500.0,0.00017096,2]
[394121630,1763309432215,-500.0,0.00017096,2]
[394121632,1763309432225,-500.0,0.00017096,2]
[394121634,1763309432238,-500.0,0.00017096,2]
[394121636,1763309432247,-500.0,0.00017096,2]
[394121638,1763309432256,-187795.47242813,0.00017097,2]
[394121640,1763309432272,-1302.0,0.00017097,2]
[394121643,1763309432284,-3021.785382,0.00017097,2]
[394121661,1763309432449,-18158.8806214,0.00017097,2]
[394121682,1763309432643,-1305.0,0.00017097,2]
[394121685,1763309432660,-2850.15,0.00017097,2]
[394121687,1763309432671,-703.11410132,0.00017097,2]
[394121689,1763309432682,-9854.81416542,0.00017097,2]
[394121691,1763309432694,-357.55450216,0.00017097,2]
[394121693,1763309432706,-134175.15897505,0.00017097,2]
[394121709,1763309437899,-160.0,0.00016738,2]
[394121710,1763309437915,-126.77382999,0.00017097,2]
[394121711,1763309437930,-110847.92838018,0.00017097,2]
[394121712,1763309437945,-4422.5248374,0.00017097,2]
[394121713,1763309437960,-617.4415,0.00017097,2]
[394121716,1763309438101,-221.41775966,0.00016997,2]
[394121718,1763309438119,-1217.89424034,0.00017097,2]
[394121846,1763309439500,-5780.7171576,0.00017097,2]
[394121859,1763309439606,-16125.0,0.00017097,2]
[394121862,1763309439620,-7165.2535585,0.00017097,2]
[394121864,1763309439635,-1449.495,0.00017097,2]
[394121867,1763309439651,-917.72972002,0.00017097,2]
[394121897,1763309442756,-465.46500326,0.00017097,2]
[394121899,1763309442798,-2670.24020463,0.00017097,2]
[394121924,1763309445675,-791.07285415,0.00017097,2]
[394121925,1763309445947,-2757.74575253,0.00017097,2]
[394121926,1763309446094,-613.22645391,0.00017097,2]
[394121927,1763309446109,-418.64923987,0.00017097,2]
[394121928,1763309446125,-2745.02962666,0.00017097,2]
[394121929,1763309446230,-2850.00272454,0.00017097,2]
[394121975,1763309490405,1500.0,0.0001612,2]
[394121976,1763309520499,150.0,0.0001612,2]
[394121977,1763309945418,300.0,0.00016,120]
[394121978,1763309955246,200.0,0.0001612,2]
[394121981,1763309981077,631.466576,0.00016484,2]
[394121983,1763309999690,-1694.09,0.00024225,30]
[394121984,1763309999726,-1000.0,0.000248,30]
[394121985,1763309999753,-1000.0,0.000248,30]
[394121986,1763309999781,-1000.0,0.000248,30]
[394121987,1763309999808,-1000.0,0.000248,30]
[394121988,1763309999835,-1000.0,0.000248,30]
[394121989,1763309999896,-230.56193462,0.00028424,30]
[394121990,1763309999928,-1694.09,0.00029272,30]
[394121991,1763309999958,-809.24222422,0.0003,30]
[394121992,1763309999985,-300.0,0.0003,30]